[Event "*** Titled Tuesday Blitz"]
[Site "Chess.com"]
[Date "2020.04.14"]
[Round "2"]
[White "ARMQUEEN"]
[Black "vlad_Sid"]
[Result "0-1"]
[WhiteElo "2242"]
[BlackElo "2650"]
[TimeControl "180+1"]
[EndTime "10:14:29 PDT"]
[Termination "vlad_Sid won by resignation"]

1. e4 {[%clk 0:03:00.9]} 1... c6 {[%clk 0:02:59.4]} 2. d4 {[%clk 0:02:59.5]}
2... d5 {[%clk 0:03:00.3]} 3. e5 {[%clk 0:02:57.6]} 3... Bf5 {[%clk 0:02:59.5]}
4. h4 {[%clk 0:02:56.3]} 4... h5 {[%clk 0:02:58.7]} 5. c4 {[%clk 0:02:51.1]}
5... e6 {[%clk 0:02:58.7]} 6. Nc3 {[%clk 0:02:49.8]} 6... Ne7 {[%clk 0:02:57.1]}
7. Bd3 {[%clk 0:02:49.4]} 7... Bxd3 {[%clk 0:02:56.2]} 8. Qxd3 {[%clk
0:02:49.1]} 8... Nd7 {[%clk 0:02:55.2]} 9. c5 {[%clk 0:02:48.6]} 9... b6 {[%clk
0:02:52.1]} 10. b4 {[%clk 0:02:39.8]} 10... a5 {[%clk 0:02:51.6]} 11. Ba3 {[%clk
0:02:17.3]} 11... axb4 {[%clk 0:02:46.6]} 12. Bxb4 {[%clk 0:02:18.2]} 12... Nf5
{[%clk 0:02:39.2]} 13. Nf3 {[%clk 0:02:05.7]} 13... bxc5 {[%clk 0:02:38.1]} 14.
dxc5 {[%clk 0:02:06.3]} 14... Bxc5 {[%clk 0:02:38]} 15. Rb1 {[%clk 0:02:00.9]}
15... Bxb4 {[%clk 0:02:12.5]} 16. Rxb4 {[%clk 0:02:00.4]} 16... Qa5 {[%clk
0:02:12.9]} 17. Rb3 {[%clk 0:01:48.4]} 17... Nc5 {[%clk 0:02:11.7]} 18. Qd2
{[%clk 0:01:35.6]} 18... Nxb3 {[%clk 0:02:11.8]} 19. axb3 {[%clk 0:01:36.3]}
19... d4 {[%clk 0:01:55.3]} 20. Nb1 {[%clk 0:01:22.9]} 20... Qxd2+ {[%clk
0:01:40.4]} 21. Nfxd2 {[%clk 0:01:23.8]} 21... O-O-O {[%clk 0:01:35.4]} 22. Ke2
{[%clk 0:01:11.5]} 22... Rd5 {[%clk 0:01:34.4]} 23. f4 {[%clk 0:01:11.1]} 0-1

[Event "*** Titled Tuesday Blitz"]
[Site "Chess.com"]
[Date "2020.04.14"]
[Round "2"]
[White "Teidi96"]
[Black "1g41-0"]
[Result "0-1"]
[WhiteElo "2202"]
[BlackElo "2468"]
[TimeControl "180+1"]
[EndTime "10:14:38 PDT"]
[Termination "1g41-0 won by resignation"]

1. d4 {[%clk 0:03:00.9]} 1... Nf6 {[%clk 0:02:59.5]} 2. Nf3 {[%clk 0:03:00.8]}
2... g6 {[%clk 0:03:00.4]} 3. c4 {[%clk 0:02:59.9]} 3... Bg7 {[%clk 0:03:01]} 4.
Nc3 {[%clk 0:03:00.4]} 4... O-O {[%clk 0:03:01.3]} 5. e4 {[%clk 0:03:00.6]} 5...
d6 {[%clk 0:03:01.7]} 6. Be2 {[%clk 0:03:00.8]} 6... e5 {[%clk 0:03:00.7]} 7.
O-O {[%clk 0:02:59.8]} 7... Nc6 {[%clk 0:02:59.5]} 8. d5 {[%clk 0:03:00.2]} 8...
Ne7 {[%clk 0:02:59.9]} 9. b4 {[%clk 0:02:59.4]} 9... Ne8 {[%clk 0:02:49.4]} 10.
Ne1 {[%clk 0:02:59.2]} 10... f5 {[%clk 0:02:49.2]} 11. f3 {[%clk 0:02:59.5]}
11... f4 {[%clk 0:02:48.3]} 12. c5 {[%clk 0:02:57.3]} 12... g5 {[%clk
0:02:48.7]} 13. cxd6 {[%clk 0:02:52.7]} 13... Nxd6 {[%clk 0:02:47]} 14. Nd3
{[%clk 0:02:42.8]} 14... Qe8 {[%clk 0:02:25.3]} 15. Bd2 {[%clk 0:02:41]} 15...
Qh5 {[%clk 0:02:20.8]} 16. Nc5 {[%clk 0:02:36.5]} 16... Rf6 {[%clk 0:02:19.1]}
17. Nb5 {[%clk 0:02:17.3]} 17... Rh6 {[%clk 0:02:14.4]} 18. Ne6 {[%clk
0:00:55.2]} 18... Qxh2+ {[%clk 0:02:03]} 19. Kf2 {[%clk 0:00:55.2]} 19... Qg3+
{[%clk 0:01:58.4]} 20. Kg1 {[%clk 0:00:55]} 20... Rh2 {[%clk 0:01:51.5]} 21. Rf2
{[%clk 0:00:49.7]} 21... Qh4 {[%clk 0:01:51]} 0-1

[Event "*** Titled Tuesday Blitz"]
[Site "Chess.com"]
[Date "2020.04.14"]
[Round "2"]
[White "Gabix_94"]
[Black "Firegrizzly"]
[Result "1-0"]
[WhiteElo "2862"]
[BlackElo "2578"]
[TimeControl "180+1"]
[EndTime "10:14:41 PDT"]
[Termination "Gabix_94 won by checkmate"]

1. d4 {[%clk 0:03:00.5]} 1... e6 {[%clk 0:03:00.9]} 2. c4 {[%clk 0:02:58.6]}
2... Nf6 {[%clk 0:03:00.6]} 3. Nc3 {[%clk 0:02:58.5]} 3... d5 {[%clk 0:03:01.1]}
4. Nf3 {[%clk 0:02:58.4]} 4... a6 {[%clk 0:03:00.3]} 5. cxd5 {[%clk 0:02:58]}
5... exd5 {[%clk 0:02:59.9]} 6. Bg5 {[%clk 0:02:58.5]} 6... Bd7 {[%clk
0:02:58.2]} 7. Nxd5 {[%clk 0:02:48.6]} 7... Be6 {[%clk 0:02:59.1]} 8. Nxf6+
{[%clk 0:02:43.3]} 8... gxf6 {[%clk 0:02:56.6]} 9. Bd2 {[%clk 0:02:41.9]} 9...
c6 {[%clk 0:02:52.2]} 10. g3 {[%clk 0:02:38.3]} 10... Nd7 {[%clk 0:02:51.7]} 11.
Bg2 {[%clk 0:02:37.2]} 11... Be7 {[%clk 0:02:47.7]} 12. O-O {[%clk 0:02:36.9]}
12... O-O {[%clk 0:02:47.2]} 13. e4 {[%clk 0:02:36.6]} 13... f5 {[%clk
0:02:44.9]} 14. exf5 {[%clk 0:02:16.4]} 14... Bxf5 {[%clk 0:02:44.5]} 15. Re1
{[%clk 0:02:15.1]} 15... Bf6 {[%clk 0:02:40.5]} 16. Qb3 {[%clk 0:02:11.1]} 16...
Qb6 {[%clk 0:02:32]} 17. Qa3 {[%clk 0:02:02.6]} 17... a5 {[%clk 0:02:26]} 18.
Bg5 {[%clk 0:01:55.3]} 18... Bg7 {[%clk 0:02:23.9]} 19. Rad1 {[%clk 0:01:47.9]}
19... Be6 {[%clk 0:02:21.9]} 20. Ne5 {[%clk 0:01:43.1]} 20... Nxe5 {[%clk
0:02:17.9]} 21. dxe5 {[%clk 0:01:42.2]} 21... Qb4 {[%clk 0:02:18.6]} 22. Qe3
{[%clk 0:01:39]} 22... Bxa2 {[%clk 0:02:05.4]} 23. Rd4 {[%clk 0:01:30.3]} 23...
Qb3 {[%clk 0:01:54.8]} 24. Qf4 {[%clk 0:01:23]} 24... Qxb2 {[%clk 0:01:54.4]}
25. Bf6 {[%clk 0:01:21.1]} 25... Bxf6 {[%clk 0:01:47.7]} 26. exf6 {[%clk
0:01:20.6]} 26... Kh8 {[%clk 0:01:47.7]} 27. Qh6 {[%clk 0:01:11.8]} 27... Rg8
{[%clk 0:01:46.6]} 28. Be4 {[%clk 0:01:10.6]} 28... Bb1 {[%clk 0:01:34.6]} 29.
Qxh7# {[%clk 0:01:09.5]} 1-0

[Event "*** Titled Tuesday Blitz"]
[Site "Chess.com"]
[Date "2020.04.14"]
[Round "2"]
[White "mapebo94"]
[Black "Rodalquilar"]
[Result "0-1"]
[WhiteElo "1783"]
[BlackElo "2627"]
[TimeControl "180+1"]
[EndTime "10:14:41 PDT"]
[Termination "Rodalquilar won by resignation"]

1. d4 {[%clk 0:03:00.9]} 1... d5 {[%clk 0:02:59]} 2. c4 {[%clk 0:03:00.9]} 2...
e6 {[%clk 0:02:59.1]} 3. Nc3 {[%clk 0:03:00.3]} 3... a6 {[%clk 0:02:59.3]} 4.
cxd5 {[%clk 0:02:59.8]} 4... exd5 {[%clk 0:03:00.2]} 5. g3 {[%clk 0:02:59.7]}
5... Nf6 {[%clk 0:02:59.3]} 6. Bg2 {[%clk 0:02:59.9]} 6... Be6 {[%clk
0:02:53.2]} 7. Nf3 {[%clk 0:02:55.1]} 7... c6 {[%clk 0:02:51.3]} 8. a4 {[%clk
0:02:53.4]} 8... a5 {[%clk 0:02:50.8]} 9. O-O {[%clk 0:02:53.4]} 9... Nbd7
{[%clk 0:02:50.7]} 10. Re1 {[%clk 0:02:47.6]} 10... Bd6 {[%clk 0:02:48.1]} 11.
e4 {[%clk 0:02:46.4]} 11... dxe4 {[%clk 0:02:48.6]} 12. Nxe4 {[%clk 0:02:46.9]}
12... Nxe4 {[%clk 0:02:48.9]} 13. Rxe4 {[%clk 0:02:47.4]} 13... O-O {[%clk
0:02:49]} 14. Bg5 {[%clk 0:02:44.3]} 14... Qb6 {[%clk 0:02:45.7]} 15. Re2 {[%clk
0:02:37.8]} 15... Bc4 {[%clk 0:02:40.5]} 16. Re1 {[%clk 0:02:19.8]} 16... Bb4
{[%clk 0:02:38.6]} 17. Nd2 {[%clk 0:02:18.9]} 17... Be6 {[%clk 0:02:35.3]} 18.
Be3 {[%clk 0:02:13.1]} 18... Qd8 {[%clk 0:02:21.1]} 19. Qf3 {[%clk 0:02:09.7]}
19... Bd5 {[%clk 0:02:08.8]} 20. Qf4 {[%clk 0:02:04.3]} 20... Bxg2 {[%clk
0:02:05.5]} 21. Kxg2 {[%clk 0:02:05.2]} 21... Nf6 {[%clk 0:02:05.7]} 22. Qf3
{[%clk 0:01:46.8]} 22... Nd5 {[%clk 0:01:57.4]} 23. Nc4 {[%clk 0:01:45.8]} 23...
Bxe1 {[%clk 0:01:56.5]} 24. Rxe1 {[%clk 0:01:45.5]} 24... Re8 {[%clk 0:01:55.5]}
25. Qg4 {[%clk 0:01:34.5]} 25... Nf6 {[%clk 0:01:54.4]} 26. Qf3 {[%clk
0:01:31.5]} 26... Qd5 {[%clk 0:01:54]} 27. Ne5 {[%clk 0:01:30.1]} 27... Rad8
{[%clk 0:01:50.7]} 28. Bg5 {[%clk 0:01:27.1]} 28... Qxf3+ {[%clk 0:01:47.1]} 29.
Kxf3 {[%clk 0:01:24.3]} 29... Rxd4 {[%clk 0:01:46.9]} 30. Bxf6 {[%clk
0:01:15.9]} 30... gxf6 {[%clk 0:01:47.8]} 0-1

[Event "*** Titled Tuesday Blitz"]
[Site "Chess.com"]
[Date "2020.04.14"]
[Round "2"]
[White "pollo2016"]
[Black "Colombiano07"]
[Result "1-0"]
[WhiteElo "2594"]
[BlackElo "2299"]
[TimeControl "180+1"]
[EndTime "10:14:41 PDT"]
[Termination "pollo2016 won by checkmate"]

1. d4 {[%clk 0:02:54]} 1... d5 {[%clk 0:02:59.7]} 2. Nf3 {[%clk 0:02:53.2]} 2...
Bf5 {[%clk 0:02:58]} 3. Bf4 {[%clk 0:02:51.8]} 3... e6 {[%clk 0:02:57]} 4. e3
{[%clk 0:02:51.6]} 4... Bd6 {[%clk 0:02:57.2]} 5. Bg3 {[%clk 0:02:51.2]} 5...
Nf6 {[%clk 0:02:57]} 6. Nbd2 {[%clk 0:02:51.3]} 6... O-O {[%clk 0:02:56.9]} 7.
Be2 {[%clk 0:02:51.1]} 7... c5 {[%clk 0:02:57]} 8. c3 {[%clk 0:02:50.3]} 8...
Qc7 {[%clk 0:02:56.3]} 9. O-O {[%clk 0:02:49.5]} 9... Nbd7 {[%clk 0:02:54.4]}
10. Rc1 {[%clk 0:02:47.4]} 10... Bxg3 {[%clk 0:02:50.5]} 11. hxg3 {[%clk
0:02:46.9]} 11... e5 {[%clk 0:02:50.8]} 12. c4 {[%clk 0:02:41.6]} 12... e4
{[%clk 0:02:13.4]} 13. Nh4 {[%clk 0:02:41]} 13... Be6 {[%clk 0:02:13.4]} 14.
cxd5 {[%clk 0:02:21.8]} 14... Bxd5 {[%clk 0:02:06.6]} 15. Nf5 {[%clk 0:02:16.1]}
15... Rfe8 {[%clk 0:02:01.6]} 16. dxc5 {[%clk 0:02:15.3]} 16... Ne5 {[%clk
0:01:46.8]} 17. Qa4 {[%clk 0:01:55.2]} 17... Qc6 {[%clk 0:01:36.1]} 18. Bb5
{[%clk 0:01:53.3]} 18... Qe6 {[%clk 0:01:31.2]} 19. Nd4 {[%clk 0:01:41.5]} 19...
Qg4 {[%clk 0:01:29.9]} 20. Bxe8 {[%clk 0:01:41.6]} 20... Rxe8 {[%clk 0:01:29.9]}
21. Rfd1 {[%clk 0:01:40.9]} 21... Qh5 {[%clk 0:01:27.7]} 22. Nf1 {[%clk
0:01:40.5]} 22... Nd3 {[%clk 0:01:22.5]} 23. Rb1 {[%clk 0:01:32.3]} 23... Ng4
{[%clk 0:01:04.5]} 24. Qxe8# {[%clk 0:01:30.9]} 1-0

[Event "*** Titled Tuesday Blitz"]
[Site "Chess.com"]
[Date "2020.04.14"]
[Round "2"]
[White "okriak"]
[Black "DanielRensch"]
[Result "1-0"]
[WhiteElo "2761"]
[BlackElo "2530"]
[TimeControl "180+1"]
[EndTime "10:14:45 PDT"]
[Termination "okriak won by resignation"]

1. Nf3 {[%clk 0:03:00.9]} 1... Nf6 {[%clk 0:02:58.9]} 2. c4 {[%clk 0:03:01]}
2... e6 {[%clk 0:02:57.9]} 3. Nc3 {[%clk 0:02:59.3]} 3... d5 {[%clk 0:02:57.8]}
4. e3 {[%clk 0:02:59.4]} 4... Be7 {[%clk 0:02:56.6]} 5. b3 {[%clk 0:02:59.1]}
5... O-O {[%clk 0:02:56.1]} 6. Bb2 {[%clk 0:02:59.6]} 6... c5 {[%clk 0:02:54.6]}
7. cxd5 {[%clk 0:02:59.5]} 7... exd5 {[%clk 0:02:54.3]} 8. d4 {[%clk 0:02:58.9]}
8... b6 {[%clk 0:02:53.4]} 9. Be2 {[%clk 0:02:57.3]} 9... Nc6 {[%clk 0:02:52.9]}
10. O-O {[%clk 0:02:56.8]} 10... Bg4 {[%clk 0:02:52.1]} 11. Rc1 {[%clk
0:02:53.2]} 11... Rc8 {[%clk 0:02:49.7]} 12. Na4 {[%clk 0:02:48.6]} 12... Ne4
{[%clk 0:02:47.4]} 13. dxc5 {[%clk 0:02:43.6]} 13... bxc5 {[%clk 0:02:46.7]} 14.
Ne5 {[%clk 0:02:38.3]} 14... Bxe2 {[%clk 0:02:44.2]} 15. Qxe2 {[%clk 0:02:38.7]}
15... Nxe5 {[%clk 0:02:35.6]} 16. Bxe5 {[%clk 0:02:38.7]} 16... Qa5 {[%clk
0:02:22.9]} 17. Nc3 {[%clk 0:02:29.7]} 17... Nxc3 {[%clk 0:02:18.2]} 18. Bxc3
{[%clk 0:02:29.3]} 18... Qb6 {[%clk 0:02:17.3]} 19. Rfd1 {[%clk 0:02:24.3]}
19... Rfd8 {[%clk 0:02:15.8]} 20. Rxd5 {[%clk 0:02:10.8]} 20... Rxd5 {[%clk
0:02:02.3]} 21. Qg4 {[%clk 0:02:10.5]} 21... Bf6 {[%clk 0:02:00.6]} 22. Bxf6
{[%clk 0:02:00.1]} 22... Qxf6 {[%clk 0:01:58.5]} 23. Qxc8+ {[%clk 0:01:59.7]}
23... Qd8 {[%clk 0:01:58.4]} 24. Qxd8+ {[%clk 0:01:56.5]} 24... Rxd8 {[%clk
0:01:59.3]} 25. Kf1 {[%clk 0:01:56.5]} 25... Rc8 {[%clk 0:01:50.2]} 26. Rc4
{[%clk 0:01:55]} 26... a5 {[%clk 0:01:48.2]} 27. Ra4 {[%clk 0:01:52.4]} 27...
Ra8 {[%clk 0:01:44.7]} 28. a3 {[%clk 0:01:48.6]} 28... Kf8 {[%clk 0:01:32.2]}
29. b4 {[%clk 0:01:47.8]} 29... c4 {[%clk 0:01:16.6]} 30. Rxa5 {[%clk
0:01:47.4]} 30... Rc8 {[%clk 0:01:10]} 31. Ke2 {[%clk 0:01:43.9]} 31... c3
{[%clk 0:01:09.5]} 32. Rc5 {[%clk 0:01:42.9]} 1-0

[Event "*** Titled Tuesday Blitz"]
[Site "Chess.com"]
[Date "2020.04.14"]
[Round "2"]
[White "inegrepus"]
[Black "Astaneh"]
[Result "1/2-1/2"]
[WhiteElo "2304"]
[BlackElo "2532"]
[TimeControl "180+1"]
[EndTime "10:14:45 PDT"]
[Termination "Game drawn by repetition"]

1. d4 {[%clk 0:02:56.9]} 1... Nf6 {[%clk 0:02:58.8]} 2. c4 {[%clk 0:02:56.4]}
2... e6 {[%clk 0:02:59.4]} 3. g3 {[%clk 0:02:55.7]} 3... c5 {[%clk 0:02:59.5]}
4. d5 {[%clk 0:02:54.8]} 4... exd5 {[%clk 0:03:00.4]} 5. cxd5 {[%clk 0:02:55.3]}
5... g6 {[%clk 0:03:01.1]} 6. Nc3 {[%clk 0:02:54.9]} 6... Bg7 {[%clk 0:03:01.6]}
7. Bg2 {[%clk 0:02:54.6]} 7... O-O {[%clk 0:03:02.2]} 8. Nf3 {[%clk 0:02:54.6]}
8... a6 {[%clk 0:03:02.8]} 9. a4 {[%clk 0:02:53.7]} 9... Re8 {[%clk 0:03:03.3]}
10. O-O {[%clk 0:02:52.2]} 10... d6 {[%clk 0:03:04]} 11. Bf4 {[%clk 0:02:50.4]}
11... Ne4 {[%clk 0:03:00.3]} 12. Nxe4 {[%clk 0:02:50]} 12... Rxe4 {[%clk
0:03:01.2]} 13. Nd2 {[%clk 0:02:49.8]} 13... Rb4 {[%clk 0:03:01.4]} 14. Ne4
{[%clk 0:02:32.9]} 14... Bf5 {[%clk 0:02:47]} 15. Nxd6 {[%clk 0:02:16.6]} 15...
Rxf4 {[%clk 0:02:46.9]} 16. Nxb7 {[%clk 0:02:15.2]} 16... Qb6 {[%clk 0:02:44.5]}
17. gxf4 {[%clk 0:02:09.7]} 17... Qxb7 {[%clk 0:02:44.7]} 18. d6 {[%clk
0:02:03.7]} 18... Be4 {[%clk 0:02:23.4]} 19. d7 {[%clk 0:01:46.5]} 19... Nxd7
{[%clk 0:02:23]} 20. Bxe4 {[%clk 0:01:45.5]} 20... Qxe4 {[%clk 0:02:23.9]} 21.
Qxd7 {[%clk 0:01:45.4]} 21... Qxe2 {[%clk 0:02:24.5]} 22. Rae1 {[%clk
0:01:38.5]} 22... Qxb2 {[%clk 0:02:23.7]} 23. Re8+ {[%clk 0:01:36.9]} 23... Rxe8
{[%clk 0:02:23.9]} 24. Qxe8+ {[%clk 0:01:37.5]} 24... Bf8 {[%clk 0:02:24.8]} 25.
Rd1 {[%clk 0:01:29.4]} 25... Qb4 {[%clk 0:01:57.6]} 26. Rd7 {[%clk 0:01:24.8]}
26... Qb1+ {[%clk 0:01:50.4]} 27. Kg2 {[%clk 0:01:22.3]} 27... Qf5 {[%clk
0:01:51]} 28. Rd8 {[%clk 0:01:16.7]} 28... Qg4+ {[%clk 0:01:51.1]} 29. Kf1
{[%clk 0:01:12.9]} 29... Qh3+ {[%clk 0:01:51]} 30. Kg1 {[%clk 0:01:04.6]} 30...
Qg4+ {[%clk 0:01:49.8]} 31. Kf1 {[%clk 0:01:04.7]} 31... Qh3+ {[%clk 0:01:49.2]}
32. Kg1 {[%clk 0:01:04.9]} 32... Qg4+ {[%clk 0:01:44]} 33. Kf1 {[%clk 0:01:04]}
1/2-1/2

[Event "*** Titled Tuesday Blitz"]
[Site "Chess.com"]
[Date "2020.04.14"]
[Round "2"]
[White "Gennady_Kozlov"]
[Black "Rsnr"]
[Result "0-1"]
[WhiteElo "2581"]
[BlackElo "2867"]
[TimeControl "180+1"]
[EndTime "10:14:49 PDT"]
[Termination "Rsnr won by checkmate"]

1. b3 {[%clk 0:02:56.4]} 1... d5 {[%clk 0:02:59.7]} 2. Bb2 {[%clk 0:02:56.9]}
2... c6 {[%clk 0:03:00.6]} 3. e3 {[%clk 0:02:56.7]} 3... Bf5 {[%clk 0:03:01.2]}
4. f4 {[%clk 0:02:57]} 4... e6 {[%clk 0:02:58.6]} 5. Nf3 {[%clk 0:02:57.5]} 5...
Nf6 {[%clk 0:02:50.2]} 6. Be2 {[%clk 0:02:57]} 6... h6 {[%clk 0:02:50.6]} 7. a4
{[%clk 0:02:54.3]} 7... Nbd7 {[%clk 0:02:45.3]} 8. Na3 {[%clk 0:02:53.6]} 8...
Bd6 {[%clk 0:02:37.4]} 9. O-O {[%clk 0:02:51.8]} 9... O-O {[%clk 0:02:37.5]} 10.
Qe1 {[%clk 0:02:51.4]} 10... Qe7 {[%clk 0:02:27.8]} 11. Qg3 {[%clk 0:02:48.2]}
11... Rfe8 {[%clk 0:02:27.8]} 12. d3 {[%clk 0:02:46.1]} 12... e5 {[%clk
0:02:22.3]} 13. fxe5 {[%clk 0:02:44.5]} 13... Nxe5 {[%clk 0:02:22.1]} 14. Nh4
{[%clk 0:02:06.4]} 14... Bh7 {[%clk 0:02:20.5]} 15. Nf5 {[%clk 0:01:59.2]} 15...
Bxf5 {[%clk 0:02:20.4]} 16. Rxf5 {[%clk 0:02:00.1]} 16... Neg4 {[%clk
0:02:21.1]} 17. Bxf6 {[%clk 0:01:57.5]} 17... Nxf6 {[%clk 0:02:21.3]} 18. Qf3
{[%clk 0:01:48.8]} 18... Bxa3 {[%clk 0:02:20.7]} 19. Rxf6 {[%clk 0:01:47.7]}
19... gxf6 {[%clk 0:02:15.2]} 20. e4 {[%clk 0:01:37.6]} 20... Bb2 {[%clk
0:02:13.9]} 21. Qg4+ {[%clk 0:01:36.2]} 21... Kh8 {[%clk 0:02:13.6]} 22. Qh5
{[%clk 0:01:32.3]} 22... Qf8 {[%clk 0:02:05.4]} 23. Rf1 {[%clk 0:01:30.1]} 23...
Qg7 {[%clk 0:02:04]} 24. Rf3 {[%clk 0:01:26.8]} 24... Re5 {[%clk 0:02:01.7]} 25.
Qh3 {[%clk 0:01:25.5]} 25... dxe4 {[%clk 0:02:00.5]} 26. dxe4 {[%clk 0:01:23.4]}
26... Rd8 {[%clk 0:02:00.3]} 27. Bd3 {[%clk 0:01:22.8]} 27... Bd4+ {[%clk
0:01:59.8]} 28. Kf1 {[%clk 0:01:22.1]} 28... Rg5 {[%clk 0:01:59.9]} 29. g3
{[%clk 0:01:19.6]} 29... Qg6 {[%clk 0:01:50.6]} 30. Rf4 {[%clk 0:01:18.6]} 30...
Qh5 {[%clk 0:01:46.7]} 31. Rh4 {[%clk 0:01:02.5]} 31... Qf3+ {[%clk 0:01:46.3]}
32. Ke1 {[%clk 0:01:02.5]} 32... Bc3# {[%clk 0:01:43.8]} 0-1

[Event "*** Titled Tuesday Blitz"]
[Site "Chess.com"]
[Date "2020.04.14"]
[Round "2"]
[White "aakankshachess"]
[Black "bangchess21"]
[Result "0-1"]
[WhiteElo "2433"]
[BlackElo "2695"]
[TimeControl "180+1"]
[EndTime "10:14:50 PDT"]
[Termination "bangchess21 won by resignation"]

1. e4 {[%clk 0:03:00.9]} 1... c5 {[%clk 0:02:59.8]} 2. Nf3 {[%clk 0:03:00.3]}
2... Nc6 {[%clk 0:03:00.2]} 3. d4 {[%clk 0:02:59.9]} 3... cxd4 {[%clk
0:03:00.4]} 4. Nxd4 {[%clk 0:03:00.6]} 4... g6 {[%clk 0:03:01.1]} 5. c4 {[%clk
0:03:00.1]} 5... Bg7 {[%clk 0:02:57.9]} 6. Be3 {[%clk 0:03:00.1]} 6... Nf6
{[%clk 0:02:58]} 7. Nc3 {[%clk 0:03:00.3]} 7... Ng4 {[%clk 0:02:58.5]} 8. Qxg4
{[%clk 0:02:59.6]} 8... Nxd4 {[%clk 0:02:59]} 9. Qd1 {[%clk 0:02:59]} 9... e5
{[%clk 0:02:59.3]} 10. Bxd4 {[%clk 0:02:56.2]} 10... exd4 {[%clk 0:02:59]} 11.
Nd5 {[%clk 0:02:56.8]} 11... O-O {[%clk 0:02:40.5]} 12. Bd3 {[%clk 0:02:56.2]}
12... b6 {[%clk 0:02:33.4]} 13. O-O {[%clk 0:02:55.1]} 13... Bb7 {[%clk
0:02:33.6]} 14. Qf3 {[%clk 0:02:49.9]} 14... d6 {[%clk 0:02:30]} 15. Rac1 {[%clk
0:02:48.7]} 15... Re8 {[%clk 0:02:27.9]} 16. Qg3 {[%clk 0:02:46.5]} 16... Rc8
{[%clk 0:02:25.9]} 17. f4 {[%clk 0:02:44.2]} 17... Bxd5 {[%clk 0:02:26]} 18.
cxd5 {[%clk 0:02:43.8]} 18... Qd7 {[%clk 0:02:22.3]} 19. Qf3 {[%clk 0:02:29.7]}
19... f5 {[%clk 0:02:00.4]} 20. exf5 {[%clk 0:02:24.4]} 20... Re3 {[%clk
0:02:00.2]} 21. Rxc8+ {[%clk 0:02:21.5]} 21... Qxc8 {[%clk 0:02:00.2]} 22. Qd1
{[%clk 0:02:20.9]} 22... gxf5 {[%clk 0:02:00.6]} 23. Bb1 {[%clk 0:02:16]} 23...
Qc5 {[%clk 0:01:46]} 24. Qh5 {[%clk 0:02:15.1]} 24... d3 {[%clk 0:01:38.6]} 25.
Kh1 {[%clk 0:02:14.2]} 25... Qxd5 {[%clk 0:01:32.6]} 26. Rc1 {[%clk 0:02:13.6]}
26... Qc5 {[%clk 0:01:21.5]} 27. Rd1 {[%clk 0:02:09]} 27... d2 {[%clk
0:01:17.2]} 28. h3 {[%clk 0:02:03.6]} 28... Re1+ {[%clk 0:01:15.2]} 29. Kh2
{[%clk 0:02:03.9]} 29... Qg1+ {[%clk 0:01:12.5]} 30. Kg3 {[%clk 0:02:00.5]}
30... Qe3+ {[%clk 0:01:09.1]} 31. Kh4 {[%clk 0:01:56.1]} 31... Bf6+ {[%clk
0:00:59.4]} 0-1

[Event "*** Titled Tuesday Blitz"]
[Site "Chess.com"]
[Date "2020.04.14"]
[Round "2"]
[White "onnoelgersma"]
[Black "JesseFebruary"]
[Result "1-0"]
[WhiteElo "2363"]
[BlackElo "1754"]
[TimeControl "180+1"]
[EndTime "10:14:50 PDT"]
[Termination "onnoelgersma won by resignation"]

1. e4 {[%clk 0:03:00.9]} 1... c5 {[%clk 0:02:58.6]} 2. Nf3 {[%clk 0:03:01.2]}
2... d6 {[%clk 0:02:58]} 3. d4 {[%clk 0:03:01.8]} 3... cxd4 {[%clk 0:02:58.6]}
4. Nxd4 {[%clk 0:03:02.7]} 4... Nf6 {[%clk 0:02:58.7]} 5. Nc3 {[%clk 0:03:03.3]}
5... a6 {[%clk 0:02:58]} 6. h3 {[%clk 0:03:03.6]} 6... e6 {[%clk 0:02:50.7]} 7.
g4 {[%clk 0:03:03.5]} 7... Be7 {[%clk 0:02:49.1]} 8. g5 {[%clk 0:03:02.4]} 8...
Nfd7 {[%clk 0:02:48.4]} 9. h4 {[%clk 0:03:03]} 9... b5 {[%clk 0:02:45.1]} 10. a3
{[%clk 0:03:01.8]} 10... Bb7 {[%clk 0:02:45]} 11. Be3 {[%clk 0:03:02.4]} 11...
Qc7 {[%clk 0:02:41.4]} 12. h5 {[%clk 0:02:59.1]} 12... Nc6 {[%clk 0:02:35]} 13.
Rg1 {[%clk 0:02:57.7]} 13... Rc8 {[%clk 0:02:20.6]} 14. g6 {[%clk 0:02:49.6]}
14... Nf6 {[%clk 0:02:03.7]} 15. gxf7+ {[%clk 0:02:39.1]} 15... Kxf7 {[%clk
0:02:04.6]} 16. Rxg7+ {[%clk 0:02:37.1]} 16... Ke8 {[%clk 0:01:51.4]} 17. Nxe6
{[%clk 0:02:16.4]} 17... Qb8 {[%clk 0:01:20.1]} 18. Nd5 {[%clk 0:01:55.5]} 18...
Nxe4 {[%clk 0:00:58.6]} 19. h6 {[%clk 0:01:42.1]} 19... Nf6 {[%clk 0:00:44.1]}
20. Nxf6+ {[%clk 0:01:39.2]} 1-0

[Event "*** Titled Tuesday Blitz"]
[Site "Chess.com"]
[Date "2020.04.14"]
[Round "2"]
[White "gvanna"]
[Black "KetiTsatsalashvili"]
[Result "0-1"]
[WhiteElo "2469"]
[BlackElo "2234"]
[TimeControl "180+1"]
[EndTime "10:14:55 PDT"]
[Termination "KetiTsatsalashvili won by resignation"]

1. e4 {[%clk 0:03:00.8]} 1... c6 {[%clk 0:02:59.5]} 2. Nf3 {[%clk 0:03:00.4]}
2... d5 {[%clk 0:02:59]} 3. Nc3 {[%clk 0:03:00.9]} 3... dxe4 {[%clk 0:02:52.5]}
4. Nxe4 {[%clk 0:03:01.3]} 4... Bf5 {[%clk 0:02:49]} 5. Ng3 {[%clk 0:02:59.6]}
5... Bg6 {[%clk 0:02:48.5]} 6. d4 {[%clk 0:02:58.6]} 6... e6 {[%clk 0:02:47.8]}
7. Ne5 {[%clk 0:02:55.5]} 7... Nd7 {[%clk 0:02:44.8]} 8. Nxg6 {[%clk 0:02:55.6]}
8... hxg6 {[%clk 0:02:44.2]} 9. Be2 {[%clk 0:02:53.3]} 9... Ngf6 {[%clk
0:02:43.6]} 10. Bf4 {[%clk 0:02:49.1]} 10... Nd5 {[%clk 0:02:42.3]} 11. Bd2
{[%clk 0:02:48.4]} 11... Bd6 {[%clk 0:02:41.9]} 12. c4 {[%clk 0:02:45.7]} 12...
Nf4 {[%clk 0:02:33.8]} 13. Bxf4 {[%clk 0:02:41.8]} 13... Bxf4 {[%clk 0:02:32.7]}
14. a3 {[%clk 0:02:33.7]} 14... Bxg3 {[%clk 0:02:20.6]} 15. fxg3 {[%clk
0:02:33]} 15... Qf6 {[%clk 0:02:20.3]} 16. Qd2 {[%clk 0:02:24.9]} 16... c5
{[%clk 0:02:10.4]} 17. O-O-O {[%clk 0:02:17.9]} 17... cxd4 {[%clk 0:02:09.5]}
18. Qxd4 {[%clk 0:02:17.9]} 18... Qxd4 {[%clk 0:02:04.3]} 19. Rxd4 {[%clk
0:02:17.7]} 19... Ke7 {[%clk 0:01:59.2]} 20. Bf3 {[%clk 0:02:15.8]} 20... Rab8
{[%clk 0:01:57.5]} 21. h3 {[%clk 0:02:10.2]} 21... Rhc8 {[%clk 0:01:50.3]} 22.
Kb1 {[%clk 0:02:07.5]} 22... b6 {[%clk 0:01:45.3]} 23. Rhd1 {[%clk 0:02:06.7]}
23... Ne5 {[%clk 0:01:44.8]} 24. Be2 {[%clk 0:02:05.4]} 24... Rd8 {[%clk
0:01:42.5]} 25. b4 {[%clk 0:02:01.1]} 25... Rxd4 {[%clk 0:01:35.6]} 26. Rxd4
{[%clk 0:02:01.3]} 26... a5 {[%clk 0:01:35.4]} 27. Kb2 {[%clk 0:02:00.7]} 27...
axb4 {[%clk 0:01:32.5]} 28. axb4 {[%clk 0:02:00.6]} 28... Nc6 {[%clk 0:01:32.6]}
29. Rd1 {[%clk 0:01:48.5]} 29... Nxb4 {[%clk 0:01:31.8]} 30. Ra1 {[%clk
0:01:47.9]} 30... Nc6 {[%clk 0:01:26.9]} 31. Kc3 {[%clk 0:01:39]} 31... Ne5
{[%clk 0:01:24.2]} 32. Ra7+ {[%clk 0:01:37.1]} 32... Kf6 {[%clk 0:01:23.3]} 33.
Kb4 {[%clk 0:01:37.6]} 33... Nc6+ {[%clk 0:01:22.2]} 0-1